[Event "Early-Titled-Tuesday-Blitz-July-09-2024"]
[Site "Chess.com"]
[Date "2024.07.09"]
[Round "4"]
[White "bilosuvenosu06"]
[Black "ArmanGhevondyanchess"]
[Result "1-0"]
[WhiteElo "2555"]
[BlackElo "2741"]
[TimeControl "180+1"]
[EndTime "8:39:53 PDT"]
[Termination "bilosuvenosu06 won on time"]

1. d4 {[%clk 0:02:58.9]} 1... Nf6 {[%clk 0:02:59.6]} 2. c4 {[%clk 0:02:58.6]}
2... g6 {[%clk 0:02:59.7]} 3. Nc3 {[%clk 0:02:58.6]} 3... d5 {[%clk 0:02:59.8]}
4. cxd5 {[%clk 0:02:56.6]} 4... Nxd5 {[%clk 0:03:00.7]} 5. e4 {[%clk 0:02:57.2]}
5... Nxc3 {[%clk 0:03:01.3]} 6. bxc3 {[%clk 0:02:58.1]} 6... Bg7 {[%clk
0:03:02.1]} 7. Be3 {[%clk 0:02:58]} 7... O-O {[%clk 0:03:03]} 8. Nf3 {[%clk
0:02:57.4]} 8... c5 {[%clk 0:03:03.5]} 9. Be2 {[%clk 0:02:56.5]} 9... cxd4
{[%clk 0:03:02.7]} 10. cxd4 {[%clk 0:02:57.4]} 10... Nc6 {[%clk 0:02:59.5]} 11.
h3 {[%clk 0:02:56.2]} 11... Qa5+ {[%clk 0:02:42]} 12. Bd2 {[%clk 0:02:39.1]}
12... Qa3 {[%clk 0:02:40.9]} 13. Be3 {[%clk 0:02:38.9]} 13... Qa5+ {[%clk
0:02:40.9]} 14. Bd2 {[%clk 0:02:38.6]} 14... Qa3 {[%clk 0:02:27.6]} 15. Be3
{[%clk 0:02:38]} 15... Rd8 {[%clk 0:02:17.1]} 16. O-O {[%clk 0:02:34.7]} 16...
b6 {[%clk 0:02:09.8]} 17. Bc4 {[%clk 0:02:13.7]} 17... Bb7 {[%clk 0:01:57.4]}
18. Qd2 {[%clk 0:01:42.9]} 18... Na5 {[%clk 0:01:48.2]} 19. Bd3 {[%clk
0:01:42.5]} 19... Rac8 {[%clk 0:01:43]} 20. Rac1 {[%clk 0:01:41.8]} 20... b5
{[%clk 0:01:03.8]} 21. d5 {[%clk 0:01:21.8]} 21... Nc4 {[%clk 0:01:02.8]} 22.
Bxc4 {[%clk 0:01:20.6]} 22... bxc4 {[%clk 0:00:53.8]} 23. Bd4 {[%clk 0:01:19.7]}
23... c3 {[%clk 0:00:43.3]} 24. Qc2 {[%clk 0:01:15.2]} 24... Ba6 {[%clk
0:00:19]} 25. Rfd1 {[%clk 0:01:13.6]} 25... Bb5 {[%clk 0:00:11.1]} 26. Bxg7
{[%clk 0:01:03.8]} 26... Kxg7 {[%clk 0:00:12]} 27. Rd4 {[%clk 0:00:53.2]} 27...
Rd7 {[%clk 0:00:07.4]} 28. Rb1 {[%clk 0:00:52.7]} 28... a6 {[%clk 0:00:07.3]}
29. Rb3 {[%clk 0:00:52.5]} 29... Qc5 {[%clk 0:00:07.7]} 30. a4 {[%clk
0:00:47.8]} 30... Bc4 {[%clk 0:00:06.8]} 31. Rxc3 {[%clk 0:00:47]} 31... Rdc7
{[%clk 0:00:07.1]} 32. Rdxc4 {[%clk 0:00:45.5]} 32... Qxc4 {[%clk 0:00:08]} 33.
Rxc4 {[%clk 0:00:46.2]} 33... Rxc4 {[%clk 0:00:08.9]} 34. Qb2+ {[%clk
0:00:46.2]} 34... f6 {[%clk 0:00:09]} 35. e5 {[%clk 0:00:42.3]} 35... Rc1+
{[%clk 0:00:08.7]} 36. Kh2 {[%clk 0:00:42.3]} 36... R1c2 {[%clk 0:00:09.6]} 37.
Qb7 {[%clk 0:00:41.8]} 37... R8c7 {[%clk 0:00:10.2]} 38. Qxa6 {[%clk 0:00:40.4]}
38... Rxf2 {[%clk 0:00:10.3]} 39. d6 {[%clk 0:00:37.6]} 39... Rcc2 {[%clk
0:00:10.3]} 40. Ne1 {[%clk 0:00:33.8]} 40... Rce2 {[%clk 0:00:08.9]} 41. dxe7
{[%clk 0:00:33.2]} 41... Rxe5 {[%clk 0:00:09.2]} 42. Nd3 {[%clk 0:00:31.9]}
42... Rfe2 {[%clk 0:00:06.2]} 43. Nxe5 {[%clk 0:00:32]} 43... Rxe5 {[%clk
0:00:07.1]} 44. Qd6 {[%clk 0:00:32.4]} 44... Kf7 {[%clk 0:00:07.6]} 45. a5
{[%clk 0:00:31.8]} 45... Rxe7 {[%clk 0:00:08.2]} 46. Qxe7+ {[%clk 0:00:29.9]}
46... Kxe7 {[%clk 0:00:08.6]} 47. a6 {[%clk 0:00:30.8]} 1-0

[Event "Early-Titled-Tuesday-Blitz-July-09-2024"]
[Site "Chess.com"]
[Date "2024.07.09"]
[Round "4"]
[White "Hikaru"]
[Black "iwanyu"]
[Result "0-1"]
[WhiteElo "3218"]
[BlackElo "2899"]
[TimeControl "180+1"]
[EndTime "8:39:56 PDT"]
[Termination "iwanyu won by resignation"]

1. b3 {[%clk 0:03:00.9]} 1... Nf6 {[%clk 0:02:55.6]} 2. Bb2 {[%clk 0:03:01]}
2... g6 {[%clk 0:02:56.3]} 3. d4 {[%clk 0:03:00.8]} 3... Bg7 {[%clk 0:02:55.5]}
4. Nf3 {[%clk 0:03:01.4]} 4... c5 {[%clk 0:02:48.1]} 5. dxc5 {[%clk 0:02:59.5]}
5... Qa5+ {[%clk 0:02:47.6]} 6. Nbd2 {[%clk 0:02:59.7]} 6... Qxc5 {[%clk
0:02:45.8]} 7. e3 {[%clk 0:03:00]} 7... Qc7 {[%clk 0:02:45.3]} 8. c4 {[%clk
0:02:59.8]} 8... O-O {[%clk 0:02:44.5]} 9. g3 {[%clk 0:02:59.8]} 9... b6 {[%clk
0:02:43.6]} 10. Bg2 {[%clk 0:03:00.1]} 10... Bb7 {[%clk 0:02:44.3]} 11. O-O
{[%clk 0:03:00.8]} 11... d6 {[%clk 0:02:44.6]} 12. Qe2 {[%clk 0:03:00.4]} 12...
Nbd7 {[%clk 0:02:45]} 13. Rac1 {[%clk 0:02:59.7]} 13... Rac8 {[%clk 0:02:43.2]}
14. e4 {[%clk 0:02:53.6]} 14... e5 {[%clk 0:02:37.5]} 15. Ne1 {[%clk 0:02:48.4]}
15... Bh6 {[%clk 0:02:29.3]} 16. Rd1 {[%clk 0:02:18.8]} 16... Nc5 {[%clk
0:02:29]} 17. f3 {[%clk 0:02:19.1]} 17... b5 {[%clk 0:02:23]} 18. cxb5 {[%clk
0:02:18.4]} 18... d5 {[%clk 0:02:21.7]} 19. exd5 {[%clk 0:02:16.2]} 19... Nxd5
{[%clk 0:02:09]} 20. Nc4 {[%clk 0:02:16]} 20... f6 {[%clk 0:01:56.8]} 21. f4
{[%clk 0:02:10.8]} 21... e4 {[%clk 0:01:54.5]} 22. f5 {[%clk 0:02:01.7]} 22...
Rcd8 {[%clk 0:01:42.2]} 23. Bd4 {[%clk 0:01:48.6]} 23... Rfe8 {[%clk 0:01:32.6]}
24. Nc2 {[%clk 0:01:38.9]} 24... e3 {[%clk 0:01:16.8]} 25. Bxd5+ {[%clk
0:01:01.7]} 25... Bxd5 {[%clk 0:01:02.1]} 26. fxg6 {[%clk 0:00:58.6]} 26... Ne4
{[%clk 0:00:49.7]} 27. b6 {[%clk 0:00:25.4]} 27... Qg7 {[%clk 0:00:40.1]} 28.
N4xe3 {[%clk 0:00:22.5]} 28... Ng5 {[%clk 0:00:33.8]} 29. h4 {[%clk 0:00:18.6]}
29... Qxg6 {[%clk 0:00:15.9]} 30. Rxf6 {[%clk 0:00:15]} 30... Qe4 {[%clk
0:00:14.2]} 31. Kh2 {[%clk 0:00:12.8]} 31... Nf3+ {[%clk 0:00:13]} 32. Rxf3
{[%clk 0:00:13.2]} 32... Qxf3 {[%clk 0:00:13.1]} 33. Qxf3 {[%clk 0:00:14.1]}
33... Bxf3 {[%clk 0:00:13.7]} 34. Rf1 {[%clk 0:00:14.7]} 34... Be4 {[%clk
0:00:11.3]} 35. Ng4 {[%clk 0:00:11.7]} 35... Bg7 {[%clk 0:00:08.4]} 36. Bxg7
{[%clk 0:00:11.7]} 36... Kxg7 {[%clk 0:00:06.8]} 37. Nce3 {[%clk 0:00:11.8]}
37... Rd2+ {[%clk 0:00:06.2]} 38. Rf2 {[%clk 0:00:12.1]} 38... Rxf2+ {[%clk
0:00:05.3]} 39. Nxf2 {[%clk 0:00:13]} 39... axb6 {[%clk 0:00:05.8]} 40. Nc4
{[%clk 0:00:13.6]} 40... Bc6 {[%clk 0:00:04.4]} 41. a4 {[%clk 0:00:12.3]} 41...
Re2 {[%clk 0:00:04.2]} 42. Kg1 {[%clk 0:00:12.5]} 42... Re1+ {[%clk 0:00:04.5]}
43. Kh2 {[%clk 0:00:13.2]} 43... Rf1 {[%clk 0:00:05]} 44. g4 {[%clk 0:00:12.8]}
44... Rxf2+ {[%clk 0:00:05.3]} 0-1

[Event "Early-Titled-Tuesday-Blitz-July-09-2024"]
[Site "Chess.com"]
[Date "2024.07.09"]
[Round "4"]
[White "UK_23"]
[Black "FoggyMorning"]
[Result "0-1"]
[WhiteElo "2415"]
[BlackElo "2661"]
[TimeControl "180+1"]
[EndTime "8:39:57 PDT"]
[Termination "FoggyMorning won by checkmate"]

1. e4 {[%clk 0:03:00.9]} 1... e6 {[%clk 0:03:00.6]} 2. d4 {[%clk 0:03:00.6]}
2... d5 {[%clk 0:03:01.3]} 3. e5 {[%clk 0:03:01.2]} 3... c5 {[%clk 0:03:01.3]}
4. c3 {[%clk 0:03:01.9]} 4... Qb6 {[%clk 0:03:01.7]} 5. Nf3 {[%clk 0:03:02]}
5... Nc6 {[%clk 0:03:02.4]} 6. Be2 {[%clk 0:02:59.9]} 6... Bd7 {[%clk
0:03:01.4]} 7. O-O {[%clk 0:02:59.8]} 7... cxd4 {[%clk 0:03:02]} 8. cxd4 {[%clk
0:02:59.4]} 8... Nge7 {[%clk 0:03:02.5]} 9. Nc3 {[%clk 0:02:44.2]} 9... Nf5
{[%clk 0:03:02.6]} 10. Na4 {[%clk 0:02:43.7]} 10... Qd8 {[%clk 0:03:00.6]} 11.
a3 {[%clk 0:02:43.9]} 11... Be7 {[%clk 0:02:59.3]} 12. b4 {[%clk 0:02:43.2]}
12... O-O {[%clk 0:02:58.4]} 13. Bb2 {[%clk 0:02:42]} 13... a5 {[%clk
0:02:53.3]} 14. b5 {[%clk 0:02:41.6]} 14... Na7 {[%clk 0:02:53]} 15. Qb3 {[%clk
0:02:37.1]} 15... Nc8 {[%clk 0:02:47.9]} 16. Rac1 {[%clk 0:02:28.1]} 16... Nb6
{[%clk 0:02:46.5]} 17. Nc5 {[%clk 0:02:28.3]} 17... a4 {[%clk 0:02:23.1]} 18.
Qd1 {[%clk 0:02:19.6]} 18... Ra7 {[%clk 0:02:15.3]} 19. g4 {[%clk 0:02:16.3]}
19... Nh4 {[%clk 0:02:13.6]} 20. Nxh4 {[%clk 0:02:16.9]} 20... Bxh4 {[%clk
0:02:13.7]} 21. f4 {[%clk 0:02:17.8]} 21... Be7 {[%clk 0:02:06.6]} 22. Kh1
{[%clk 0:02:16.8]} 22... f5 {[%clk 0:02:01.4]} 23. gxf5 {[%clk 0:02:04.5]} 23...
exf5 {[%clk 0:01:50.5]} 24. Rg1 {[%clk 0:02:03.5]} 24... Nc4 {[%clk 0:01:44.8]}
25. Rxc4 {[%clk 0:01:52.3]} 25... dxc4 {[%clk 0:01:45.7]} 26. Bxc4+ {[%clk
0:01:52.9]} 26... Kh8 {[%clk 0:01:43.6]} 27. Qh5 {[%clk 0:01:48.6]} 27... Bxc5
{[%clk 0:01:26.1]} 28. dxc5 {[%clk 0:01:47.6]} 28... Be8 {[%clk 0:01:08.9]} 29.
Qe2 {[%clk 0:01:19.8]} 29... Bg6 {[%clk 0:00:57.3]} 30. e6 {[%clk 0:01:14.2]}
30... Qe7 {[%clk 0:00:54]} 31. Qe5 {[%clk 0:01:05.5]} 31... Raa8 {[%clk
0:00:46.3]} 32. Rd1 {[%clk 0:00:52.9]} 32... Rad8 {[%clk 0:00:39.8]} 33. Rd7
{[%clk 0:00:51.8]} 33... Rxd7 {[%clk 0:00:36.2]} 34. exd7 {[%clk 0:00:52.7]}
34... Qxd7 {[%clk 0:00:36.7]} 35. Bd5 {[%clk 0:00:41.8]} 35... Re8 {[%clk
0:00:33.9]} 36. Qd4 {[%clk 0:00:36.7]} 36... Re1+ {[%clk 0:00:21.7]} 37. Kg2
{[%clk 0:00:36.7]} 37... Re2+ {[%clk 0:00:22.3]} 38. Kg3 {[%clk 0:00:30.2]}
38... Rxb2 {[%clk 0:00:23.2]} 39. c6 {[%clk 0:00:30.3]} 39... Rb3+ {[%clk
0:00:19.8]} 40. Kf2 {[%clk 0:00:26.2]} 40... bxc6 {[%clk 0:00:16]} 41. bxc6
{[%clk 0:00:27.1]} 41... Qd6 {[%clk 0:00:09.8]} 42. c7 {[%clk 0:00:25.8]} 42...
Qxc7 {[%clk 0:00:09.1]} 43. Qxa4 {[%clk 0:00:14.9]} 43... Qc2+ {[%clk
0:00:07.9]} 44. Ke1 {[%clk 0:00:13]} 44... Rb1# {[%clk 0:00:08.8]} 0-1

[Event "Early-Titled-Tuesday-Blitz-July-09-2024"]
[Site "Chess.com"]
[Date "2024.07.09"]
[Round "4"]
[White "Kirill_Klukin"]
[Black "DanylaBagrov"]
[Result "1-0"]
[WhiteElo "2920"]
[BlackElo "2599"]
[TimeControl "180+1"]
[EndTime "8:40:01 PDT"]
[Termination "Kirill_Klukin won on time"]

1. d4 {[%clk 0:03:00.9]} 1... d6 {[%clk 0:02:59.3]} 2. Nf3 {[%clk 0:03:00.9]}
2... Nf6 {[%clk 0:02:59.8]} 3. c4 {[%clk 0:03:00.7]} 3... Nbd7 {[%clk
0:03:00.4]} 4. Nc3 {[%clk 0:03:01]} 4... e5 {[%clk 0:03:01.1]} 5. Bg5 {[%clk
0:03:01.6]} 5... Be7 {[%clk 0:02:58.4]} 6. e3 {[%clk 0:03:01.4]} 6... O-O {[%clk
0:02:57.9]} 7. Be2 {[%clk 0:02:59.9]} 7... c6 {[%clk 0:02:57.9]} 8. O-O {[%clk
0:02:59.5]} 8... e4 {[%clk 0:02:48.6]} 9. Nd2 {[%clk 0:02:49.2]} 9... d5 {[%clk
0:02:48.7]} 10. cxd5 {[%clk 0:02:47.8]} 10... cxd5 {[%clk 0:02:49.6]} 11. Rc1
{[%clk 0:02:45.6]} 11... Nb6 {[%clk 0:02:43.8]} 12. a4 {[%clk 0:02:33]} 12...
Bb4 {[%clk 0:02:34.9]} 13. Nb3 {[%clk 0:02:28.7]} 13... Bxc3 {[%clk 0:02:26.7]}
14. bxc3 {[%clk 0:02:29.1]} 14... Nxa4 {[%clk 0:02:27]} 15. Qc2 {[%clk
0:02:04.5]} 15... Bd7 {[%clk 0:02:14.5]} 16. c4 {[%clk 0:02:01.4]} 16... dxc4
{[%clk 0:01:58.2]} 17. Bxc4 {[%clk 0:02:01.2]} 17... Rc8 {[%clk 0:01:56.2]} 18.
Qa2 {[%clk 0:01:57.5]} 18... b5 {[%clk 0:01:40.7]} 19. Be2 {[%clk 0:01:37.8]}
19... Qb6 {[%clk 0:01:13.1]} 20. Qd2 {[%clk 0:01:29.2]} 20... Nd5 {[%clk
0:01:06.9]} 21. f3 {[%clk 0:00:52.6]} 21... Ndc3 {[%clk 0:00:59.6]} 22. Be7
{[%clk 0:00:39.6]} 22... Rfe8 {[%clk 0:00:54.8]} 23. Bc5 {[%clk 0:00:39]} 23...
Nxe2+ {[%clk 0:00:50.4]} 24. Qxe2 {[%clk 0:00:39.9]} 24... Qh6 {[%clk
0:00:46.2]} 25. f4 {[%clk 0:00:32.4]} 25... a6 {[%clk 0:00:43.2]} 26. f5 {[%clk
0:00:27.8]} 26... Rc6 {[%clk 0:00:39.2]} 27. Bb4 {[%clk 0:00:25.8]} 27... Rec8
{[%clk 0:00:36.1]} 28. Nc5 {[%clk 0:00:23.7]} 28... Nxc5 {[%clk 0:00:34]} 29.
Bxc5 {[%clk 0:00:24.6]} 29... Rf6 {[%clk 0:00:33.2]} 30. g4 {[%clk 0:00:19]}
30... Qg5 {[%clk 0:00:31.7]} 31. Be7 {[%clk 0:00:18]} 31... Rxc1 {[%clk
0:00:22.4]} 32. Rxc1 {[%clk 0:00:18.9]} 32... Bxf5 {[%clk 0:00:18]} 33. Bxf6
{[%clk 0:00:16.8]} 33... gxf6 {[%clk 0:00:18.9]} 34. h3 {[%clk 0:00:09.1]} 34...
Be6 {[%clk 0:00:11.6]} 35. Rc5 {[%clk 0:00:07]} 35... Qh4 {[%clk 0:00:09.5]} 36.
Kg2 {[%clk 0:00:06.5]} 36... Qh6 {[%clk 0:00:04.9]} 37. Qf2 {[%clk 0:00:06.7]}
37... Kg7 {[%clk 0:00:02.9]} 38. Qf4 {[%clk 0:00:07.2]} 38... Qxf4 {[%clk
0:00:02.3]} 39. exf4 {[%clk 0:00:08.1]} 39... Bc4 {[%clk 0:00:02.6]} 40. d5
{[%clk 0:00:08]} 40... e3 {[%clk 0:00:01.6]} 41. d6 {[%clk 0:00:06.6]} 1-0

[Event "Early-Titled-Tuesday-Blitz-July-09-2024"]
[Site "Chess.com"]
[Date "2024.07.09"]
[Round "4"]
[White "abelmat"]
[Black "Dr_Pepper18"]
[Result "0-1"]
[WhiteElo "2121"]
[BlackElo "2447"]
[TimeControl "180+1"]
[EndTime "8:40:02 PDT"]
[Termination "Dr_Pepper18 won by checkmate"]

1. d4 {[%clk 0:03:00.9]} 1... Nf6 {[%clk 0:02:58]} 2. c4 {[%clk 0:03:00.2]} 2...
g6 {[%clk 0:02:58]} 3. Nc3 {[%clk 0:02:59.6]} 3... Bg7 {[%clk 0:02:58.5]} 4. e4
{[%clk 0:02:59.7]} 4... d6 {[%clk 0:02:58.7]} 5. f3 {[%clk 0:02:59.3]} 5... O-O
{[%clk 0:02:58.4]} 6. Be3 {[%clk 0:02:59.9]} 6... c5 {[%clk 0:02:58.8]} 7. Nge2
{[%clk 0:03:00.2]} 7... Nc6 {[%clk 0:02:56.3]} 8. Qd2 {[%clk 0:02:56.4]} 8...
Qa5 {[%clk 0:02:33.9]} 9. O-O-O {[%clk 0:02:55]} 9... e5 {[%clk 0:02:14.1]} 10.
dxc5 {[%clk 0:02:50.8]} 10... dxc5 {[%clk 0:02:14.3]} 11. Kb1 {[%clk 0:02:43.5]}
11... Nd4 {[%clk 0:02:12.4]} 12. Nd5 {[%clk 0:02:41.6]} 12... Qxd2 {[%clk
0:01:42.4]} 13. Rxd2 {[%clk 0:02:35.1]} 13... Ne8 {[%clk 0:01:23.5]} 14. Nec3
{[%clk 0:02:34.2]} 14... Nd6 {[%clk 0:01:23.2]} 15. h4 {[%clk 0:02:21.7]} 15...
h5 {[%clk 0:01:17.5]} 16. Be2 {[%clk 0:02:16.8]} 16... Bd7 {[%clk 0:01:16.9]}
17. b3 {[%clk 0:02:08.2]} 17... Rab8 {[%clk 0:01:10.6]} 18. Bg5 {[%clk
0:02:00.5]} 18... f6 {[%clk 0:01:09.6]} 19. Be3 {[%clk 0:01:56.7]} 19... Rf7
{[%clk 0:00:57.2]} 20. f4 {[%clk 0:01:47.6]} 20... f5 {[%clk 0:00:38.2]} 21. Bd3
{[%clk 0:01:36]} 21... Re8 {[%clk 0:00:34.1]} 22. Rf2 {[%clk 0:01:18.2]} 22...
exf4 {[%clk 0:00:25.9]} 23. Bxf4 {[%clk 0:01:15.3]} 23... Nxe4 {[%clk
0:00:25.7]} 24. Bxe4 {[%clk 0:00:51.9]} 24... fxe4 {[%clk 0:00:24.2]} 25. Re1
{[%clk 0:00:32.2]} 25... Bf5 {[%clk 0:00:16.4]} 26. Be3 {[%clk 0:00:30.3]} 26...
a6 {[%clk 0:00:15]} 27. Ref1 {[%clk 0:00:26.3]} 27... b5 {[%clk 0:00:14.4]} 28.
cxb5 {[%clk 0:00:25.5]} 28... axb5 {[%clk 0:00:15.3]} 29. Bxd4 {[%clk
0:00:24.5]} 29... cxd4 {[%clk 0:00:13.9]} 30. Nxb5 {[%clk 0:00:24.4]} 30... e3+
{[%clk 0:00:14.4]} 31. Rxf5 {[%clk 0:00:20.8]} 31... Rxf5 {[%clk 0:00:15.3]} 32.
Nbc7 {[%clk 0:00:19.6]} 32... Rxf1+ {[%clk 0:00:15.1]} 33. Kc2 {[%clk
0:00:18.5]} 33... e2 {[%clk 0:00:13.8]} 34. Nxe8 {[%clk 0:00:17.8]} 34... e1=Q
{[%clk 0:00:14.7]} 35. Kd3 {[%clk 0:00:17.2]} 35... Qd1+ {[%clk 0:00:14.3]} 36.
Kc4 {[%clk 0:00:17.9]} 36... Qe2+ {[%clk 0:00:13.6]} 37. Kc5 {[%clk 0:00:17.6]}
37... Qxe8 {[%clk 0:00:14.5]} 38. Ne7+ {[%clk 0:00:16.8]} 38... Qxe7+ {[%clk
0:00:14.5]} 39. Kd5 {[%clk 0:00:16.9]} 39... d3 {[%clk 0:00:13.9]} 40. Kc4
{[%clk 0:00:17.5]} 40... d2 {[%clk 0:00:14]} 41. a4 {[%clk 0:00:18]} 41... d1=Q
{[%clk 0:00:14.1]} 42. b4 {[%clk 0:00:18.9]} 42... Qc2+ {[%clk 0:00:13.8]} 43.
Kb5 {[%clk 0:00:19.8]} 43... Rf5+ {[%clk 0:00:14.1]} 44. Kb6 {[%clk 0:00:18.6]}
44... Qcc7+ {[%clk 0:00:14.3]} 45. Ka6 {[%clk 0:00:18]} 45... Qa7# {[%clk
0:00:15.2]} 0-1

[Event "Early-Titled-Tuesday-Blitz-July-09-2024"]
[Site "Chess.com"]
[Date "2024.07.09"]
[Round "4"]
[White "ValeriyGrinev"]
[Black "suspiciumchess"]
[Result "0-1"]
[WhiteElo "2654"]
[BlackElo "2429"]
[TimeControl "180+1"]
[EndTime "8:40:03 PDT"]
[Termination "suspiciumchess won by resignation"]

1. d4 {[%clk 0:03:00.9]} 1... Nf6 {[%clk 0:02:56.2]} 2. c4 {[%clk 0:03:00.5]}
2... g6 {[%clk 0:02:56.2]} 3. Nf3 {[%clk 0:02:59.9]} 3... Bg7 {[%clk 0:02:56.1]}
4. Nc3 {[%clk 0:03:00.4]} 4... O-O {[%clk 0:02:56.8]} 5. e4 {[%clk 0:02:59.7]}
5... d6 {[%clk 0:02:57.2]} 6. Be2 {[%clk 0:02:59.9]} 6... e5 {[%clk 0:02:57.2]}
7. O-O {[%clk 0:02:59]} 7... a5 {[%clk 0:02:57.4]} 8. d5 {[%clk 0:02:48.2]} 8...
Na6 {[%clk 0:02:56.3]} 9. Ne1 {[%clk 0:02:47.3]} 9... Nc5 {[%clk 0:02:45.5]} 10.
f3 {[%clk 0:02:46.8]} 10... Nh5 {[%clk 0:02:45.7]} 11. Be3 {[%clk 0:02:46.3]}
11... b6 {[%clk 0:02:38.9]} 12. Nd3 {[%clk 0:02:43.4]} 12... Nxd3 {[%clk
0:02:29.4]} 13. Qxd3 {[%clk 0:02:40.8]} 13... f5 {[%clk 0:02:28.6]} 14. b3
{[%clk 0:02:35.5]} 14... Nf4 {[%clk 0:02:17]} 15. Qd2 {[%clk 0:02:34.7]} 15...
Qg5 {[%clk 0:02:15.4]} 16. g3 {[%clk 0:02:32.1]} 16... Nh3+ {[%clk 0:02:00.5]}
17. Kh1 {[%clk 0:02:29.9]} 17... f4 {[%clk 0:02:01.4]} 18. Bf2 {[%clk
0:02:22.4]} 18... Bh6 {[%clk 0:01:22.5]} 19. g4 {[%clk 0:02:08.9]} 19... Nxf2+
{[%clk 0:01:19.9]} 20. Rxf2 {[%clk 0:02:09.8]} 20... Qh4 {[%clk 0:01:19.1]} 21.
Qe1 {[%clk 0:02:07.2]} 21... Bg5 {[%clk 0:01:18.9]} 22. Rf1 {[%clk 0:02:02.9]}
22... Qxe1 {[%clk 0:01:18.2]} 23. Raxe1 {[%clk 0:01:58.2]} 23... Kf7 {[%clk
0:01:18.6]} 24. Nb5 {[%clk 0:01:56.9]} 24... Bd8 {[%clk 0:01:18]} 25. Kg2 {[%clk
0:01:56]} 25... Rh8 {[%clk 0:01:12.8]} 26. Rh1 {[%clk 0:01:53]} 26... h5 {[%clk
0:01:12.1]} 27. h3 {[%clk 0:01:52.5]} 27... Ke8 {[%clk 0:01:02.6]} 28. a4 {[%clk
0:01:51.7]} 28... Bd7 {[%clk 0:00:55.2]} 29. Reg1 {[%clk 0:01:50.9]} 29... Bxb5
{[%clk 0:00:49.7]} 30. cxb5 {[%clk 0:01:49.7]} 30... Kd7 {[%clk 0:00:50.1]} 31.
Kf1 {[%clk 0:01:46.8]} 31... Bh4 {[%clk 0:00:30.4]} 32. gxh5 {[%clk 0:01:40.9]}
32... g5 {[%clk 0:00:29.8]} 33. Kg2 {[%clk 0:01:31.1]} 33... Rxh5 {[%clk
0:00:28.5]} 34. Rc1 {[%clk 0:01:30.3]} 34... Rh7 {[%clk 0:00:19.5]} 35. Rc6
{[%clk 0:01:28.4]} 35... Rah8 {[%clk 0:00:18.2]} 36. Rhc1 {[%clk 0:01:24]} 36...
Kd8 {[%clk 0:00:18.5]} 37. Bf1 {[%clk 0:01:23.1]} 37... Bg3 {[%clk 0:00:18.5]}
38. Kg1 {[%clk 0:01:22.9]} 38... Rg8 {[%clk 0:00:13.4]} 39. Bg2 {[%clk
0:01:21.7]} 39... Rgh8 {[%clk 0:00:13.7]} 40. Kf1 {[%clk 0:01:19.5]} 40... Rg7
{[%clk 0:00:05.7]} 41. R1c4 {[%clk 0:01:17.4]} 41... Bh4 {[%clk 0:00:05.2]} 42.
Ke2 {[%clk 0:01:14.1]} 42... Bg3 {[%clk 0:00:04.9]} 43. b4 {[%clk 0:01:12.3]}
43... axb4 {[%clk 0:00:04.4]} 44. Rxb4 {[%clk 0:01:13.2]} 44... Rhh7 {[%clk
0:00:03.3]} 45. a5 {[%clk 0:01:11]} 45... bxa5 {[%clk 0:00:03.2]} 46. b6 {[%clk
0:01:06]} 46... cxb6 {[%clk 0:00:03.4]} 47. Rxd6+ {[%clk 0:01:04]} 47... Rd7
{[%clk 0:00:03.8]} 48. Rbxb6 {[%clk 0:01:01.4]} 48... Rxd6 {[%clk 0:00:03.4]}
49. Rxd6+ {[%clk 0:01:02.3]} 49... Rd7 {[%clk 0:00:03.8]} 50. Ra6 {[%clk
0:00:59.4]} 50... Rb7 {[%clk 0:00:02.4]} 51. Rxa5 {[%clk 0:00:51.1]} 51... Rb2+
{[%clk 0:00:03]} 52. Kf1 {[%clk 0:00:49.9]} 52... Rb1+ {[%clk 0:00:03.3]} 53.
Ke2 {[%clk 0:00:49.1]} 53... Re1+ {[%clk 0:00:04]} 54. Kd2 {[%clk 0:00:48.7]}
54... Rg1 {[%clk 0:00:04.9]} 55. d6 {[%clk 0:00:45.8]} 55... Be1+ {[%clk
0:00:04.5]} 56. Kd3 {[%clk 0:00:46.5]} 56... Bxa5 {[%clk 0:00:05.4]} 0-1